fUSD/lending_fUSD_20260405
["ID","MTS","AMOUNT","RATE_DAILY","PERIOD"]
[419777301,1775374253921,-160.9517,0.000148,2]
[419777302,1775374253932,-150.0,0.00014802,2]
[419777303,1775374253942,-150.0,0.00014802,2]
[419777304,1775374253953,-150.0,0.00014807,2]
[419777305,1775374253963,-500.0,0.00014809,2]
[419777306,1775374253974,-151.0,0.00014809,2]
[419777307,1775374253984,-150.0,0.0001481,2]
[419777308,1775374253994,-1600.0,0.00014817,2]
[419777309,1775374254004,-150.0,0.0001482,2]
[419777310,1775374254015,-150.0,0.00014822,2]
[419777311,1775374254025,-150.0,0.00014825,2]
[419777312,1775374254036,-150.0,0.00014831,2]
[419777313,1775374254046,-150.0,0.00014831,2]
[419777314,1775374254056,-150.0,0.00014831,2]
[419777315,1775374254067,-150.0,0.00014831,2]
[419777316,1775374254078,-150.0,0.00014831,2]
[419777317,1775374254088,-150.0,0.00014831,2]
[419777318,1775374254099,-150.0,0.00014843,2]
[419777319,1775374254109,-150.0,0.00014848,2]
[419777320,1775374254120,-150.0,0.00014849,2]
[419777321,1775374254130,-150.0,0.00014852,2]
[419777322,1775374254140,-15609.82,0.00014853,2]
[419777323,1775374254151,-150.0,0.00014853,2]
[419777324,1775374254161,-150.0,0.00014854,2]
[419777325,1775374254171,-150.0,0.0001486,2]
[419777326,1775374254181,-150.0,0.0001486,2]
[419777327,1775374254191,-150.0,0.00014861,2]
[419777328,1775374254201,-500.0,0.00014864,2]
[419777329,1775374254211,-151.0,0.00014864,2]
[419777330,1775374254221,-150.0,0.00014873,2]
[419777331,1775374254231,-150.0,0.00014874,2]
[419777332,1775374254242,-150.0,0.00014879,2]
[419777333,1775374254254,-150.0,0.00014885,2]
[419777334,1775374254264,-150.0,0.0001489,2]
[419777335,1775374254274,-150.0,0.0001489,2]
[419777336,1775374254285,-150.0,0.00014895,2]
[419777337,1775374254296,-150.0,0.00014897,2]
[419777338,1775374254313,-160.9517,0.000149,2]
[419777339,1775374254324,-150.0,0.00014901,2]
[419777340,1775374254334,-3000.0,0.00014904,2]
[419777341,1775374254345,-150.0,0.00014904,2]
[419777342,1775374254356,-1000.0,0.00014907,2]
[419777343,1775374254366,-289.56339563,0.00014908,2]
[419777344,1775374254377,-150.0,0.00014915,2]
[419777345,1775374254388,-150.0,0.00014916,2]
[419777346,1775374254398,-150.0,0.00014918,2]
[419777347,1775374254409,-150.0,0.00014919,2]
[419777348,1775374254419,-150.0,0.00014919,2]
[419777349,1775374254432,-150.0,0.00014919,2]
[419777350,1775374254442,-500.0,0.00014919,2]
[419777351,1775374254453,-151.0,0.00014919,2]
[419777352,1775374254464,-150.0,0.00014923,2]
[419777353,1775374254476,-150.0,0.00014927,2]
[419777354,1775374254488,-150.0,0.00014933,2]
[419777355,1775374254500,-150.0,0.00014937,2]
[419777356,1775374254511,-1000.0,0.00014947,2]
[419777357,1775374254521,-150.0,0.00014949,2]
[419777358,1775374254531,-150.0,0.00014949,2]
[419777359,1775374254542,-150.0,0.0001495,2]
[419777360,1775374254552,-150.0,0.00014951,2]
[419777361,1775374254563,-150.0,0.00014953,2]
[419777362,1775374254574,-150.0,0.00014958,2]
[419777363,1775374254584,-150.0,0.00014959,2]
[419777364,1775374254595,-150.0,0.00014969,2]
[419777365,1775374254605,-500.0,0.00014974,2]
[419777366,1775374254615,-151.0,0.00014974,2]
[419777367,1775374254627,-1000.0,0.00014975,2]
[419777368,1775374254639,-150.0,0.00014978,2]
[419777369,1775374254650,-150.0,0.00014978,2]
[419777370,1775374254660,-150.0,0.00014979,2]
[419777371,1775374254670,-150.0,0.00014979,2]
[419777372,1775374254681,-150.0,0.00014982,2]
[419777373,1775374254691,-1000.0,0.00014985,2]
[419777374,1775374254701,-150.0,0.00014988,2]
[419777375,1775374254711,-150.0,0.00014992,2]
[419777376,1775374254721,-1000.0,0.00014994,2]
[419777377,1775374254731,-500.0,0.00014999,2]
[419777378,1775374254742,-300.0,0.00015,2]
[419777379,1775374254752,-2067.27601646,0.00015,2]
[419777380,1775374254763,-8047.93487487,0.00015,2]
[419777381,1775374254773,-223458.98806615,0.00015,7]
[419777382,1775374254784,-150.0,0.00015001,2]
[419777383,1775374254796,-150.0,0.00015005,2]
[419777384,1775374254807,-150.0,0.00015006,2]
[419777385,1775374254818,-150.0,0.00015008,2]
[419777386,1775374254828,-150.0,0.00015008,2]
[419777387,1775374254839,-150.0,0.00015008,2]
[419777388,1775374254849,-150.0,0.00015014,2]
[419777389,1775374254859,-150.0,0.00015015,2]
[419777390,1775374254869,-2000.0,0.00015015,2]
[419777391,1775374254879,-500.0,0.00015015,2]
[419777392,1775374254889,-150.0,0.00015022,2]
[419777393,1775374254900,-150.0,0.00015024,2]
[419777394,1775374254910,-500.0,0.00015029,2]
[419777395,1775374254920,-151.0,0.00015029,2]
[419777396,1775374254930,-150.0,0.00015031,2]
[419777397,1775374254941,-150.0,0.00015037,2]
[419777398,1775374254951,-150.0,0.00015037,2]
[419777399,1775374254962,-151.0,0.00015039,2]
[419777400,1775374254972,-150.0,0.00015042,2]
[419777401,1775374254982,-150.0,0.00015043,2]
[419777402,1775374254992,-433.16765094,0.00015043,2]
[419777403,1775374255003,-1267.843,0.00015043,2]
[419777404,1775374255014,-1229.18,0.00015043,2]
[419777405,1775374255024,-1047.087,0.00015043,2]
[419777406,1775374255034,-6020.0,0.00015043,2]
[419777407,1775374255045,-626.724,0.00015043,2]
[419777408,1775374255055,-500.0,0.00015047,2]
[419777409,1775374255066,-500.0,0.00015047,2]
[419777410,1775374255077,-500.0,0.00015047,2]
[419777411,1775374255087,-500.0,0.00015047,2]
[419777412,1775374255098,-500.0,0.00015047,2]
[419777413,1775374255108,-500.0,0.00015047,2]
[419777414,1775374255119,-500.0,0.00015047,2]
[419777415,1775374255129,-500.0,0.00015047,2]
[419777416,1775374255140,-150.0,0.00015047,2]
[419777417,1775374255150,-5888.0,0.00015048,2]
[419777418,1775374255160,-499.52,0.0001505,2]
[419777419,1775374255171,-150.0,0.00015057,2]
[419777420,1775374255181,-2808.39,0.00015057,2]
[419777421,1775374255191,-1332.36,0.00015057,2]
[419777422,1775374255201,-19323.84,0.00015057,2]
[419777423,1775374255211,-10406.54,0.00015057,2]
[419777424,1775374255221,-150.0,0.0001506,2]
[419777425,1775374255231,-150.0,0.00015061,2]
[419777426,1775374255241,-150.0,0.00015064,2]
[419777427,1775374255251,-150.0,0.00015066,2]
[419777428,1775374255261,-150.0,0.00015066,2]
[419777429,1775374255272,-150.0,0.00015068,2]
[419777430,1775374255282,-5957.33,0.00015068,2]
[419777431,1775374255293,-672.962147,0.00015068,2]
[419777432,1775374255303,-672.962147,0.00015068,2]
[419777433,1775374255313,-672.962147,0.00015068,2]
[419777434,1775374255323,-672.962147,0.00015068,2]
[419777435,1775374255334,-672.962147,0.00015068,2]
[419777436,1775374255344,-672.962147,0.00015068,2]
[419777437,1775374255354,-672.962147,0.00015068,2]
[419777438,1775374255364,-672.962147,0.00015068,2]
[419777439,1775374255374,-672.962147,0.00015068,2]
[419777440,1775374255384,-672.962147,0.00015068,2]
[419777441,1775374255394,-672.962147,0.00015068,2]
[419777442,1775374255404,-672.962147,0.00015068,2]
[419777443,1775374255414,-672.962147,0.00015068,2]
[419777444,1775374255425,-672.962147,0.00015068,2]
[419777445,1775374255435,-672.962147,0.00015068,2]
[419777446,1775374255445,-672.962147,0.00015068,2]
[419777447,1775374255455,-672.962147,0.00015068,2]
[419777448,1775374255466,-672.962147,0.00015068,2]
[419777449,1775374255476,-672.962147,0.00015068,2]
[419777450,1775374255486,-672.962147,0.00015068,2]
[419777451,1775374255496,-800.0,0.00015068,2]
[419777452,1775374255507,-150.0,0.00015078,2]
[419777453,1775374255517,-150.0,0.0001508,2]
[419777454,1775374255527,-150.0,0.00015083,2]
[419777455,1775374255538,-500.0,0.00015084,2]
[419777456,1775374255548,-151.0,0.00015084,2]
[419777457,1775374255558,-150.0,0.00015085,2]
[419777458,1775374255569,-150.0,0.00015096,2]
[419777459,1775374255579,-150.0,0.00015096,2]
[419777460,1775374255589,-150.0,0.00015096,2]
[419777461,1775374255599,-150.0,0.00015096,2]
[419777462,1775374255609,-150.0,0.00015096,2]
[419777463,1775374255925,-150.0,0.00015096,2]
[419777464,1775374255936,-150.0,0.00015096,2]
[419777465,1775374255945,-150.0,0.00015096,2]
[419777466,1775374255954,-536.08,0.00015099,2]
[419777467,1775374255964,-698.2,0.00015099,2]
[419777468,1775374255973,-500.0,0.00015099,2]
[419777469,1775374255983,-150.0,0.00015106,2]
[419777470,1775374255992,-150.0,0.00015109,2]
[419777471,1775374256001,-150.0,0.00015112,2]
[419777472,1775374256010,-150.0,0.00015114,2]
[419777473,1775374256019,-350.0,0.00015115,2]
[419777474,1775374256028,-500.0,0.00015116,2]
[419777475,1775374256038,-500.0,0.00015116,2]
[419777476,1775374256047,-614.84,0.00015116,2]
[419777477,1775374256056,-150.0,0.00015123,2]
[419777478,1775374256065,-150.0,0.00015125,2]
[419777479,1775374256075,-150.0,0.00015125,2]
[419777480,1775374256084,-150.0,0.00015128,2]
[419777481,1775374256093,-150.0,0.0001513,2]
[419777482,1775374256103,-150.0,0.00015132,2]
[419777483,1775374256112,-150.0,0.00015135,2]
[419777484,1775374256123,-1481.23780761,0.00015137,2]
[419777485,1775374256133,-217.15233878,0.00015137,2]
[419777486,1775374256142,-200.0,0.00015137,2]
[419777487,1775374256152,-339.62894544,0.00015137,2]
[419777488,1775374256160,-181.08010149,0.00015137,2]
[419777489,1775374256169,-771.01748645,0.00015137,2]
[419777490,1775374256178,-200.0,0.00015137,2]
[419777491,1775374256187,-719.04747942,0.00015137,2]
[419777492,1775374256197,-290.26104003,0.00015137,2]
[419777493,1775374256205,-500.0,0.00015139,2]
[419777494,1775374256215,-151.0,0.00015139,2]
[419777495,1775374256224,-150.0,0.00015145,2]
[419777496,1775374256233,-150.0,0.00015149,2]
[419777497,1775374256244,-2976.425,0.00015149,2]
[419777498,1775374256253,-181.515,0.00015149,2]
[419777499,1775374256262,-150.0,0.0001515,2]
[419777500,1775374256272,-150.0,0.00015155,2]
[419777501,1775374256282,-150.0,0.00015155,2]
[419777502,1775374256291,-150.0,0.00015161,2]
[419777503,1775374256300,-150.0,0.00015168,2]
[419777504,1775374256310,-150.0,0.0001517,2]
[419777505,1775374256320,-150.0,0.00015177,2]
[419777506,1775374256330,-150.0,0.00015178,2]
[419777507,1775374256340,-150.0,0.00015184,2]
[419777508,1775374256350,-150.0,0.00015184,2]
[419777509,1775374256359,-150.0,0.00015184,2]
[419777510,1775374256368,-150.0,0.00015186,2]
[419777511,1775374256377,-150.0,0.00015187,2]
[419777512,1775374256387,-1000.0,0.00015191,2]
[419777513,1775374256397,-150.0,0.00015191,2]
[419777514,1775374256408,-150.0,0.000152,2]
[419777515,1775374256418,-322.47111,0.000152,2]
[419777516,1775374256427,-150.0,0.00015204,2]
[419777517,1775374256436,-1048.98200346,0.00015205,2]
[419777518,1775374256445,-10000.0,0.00015205,2]
[419777519,1775374256454,-150.0,0.00015209,2]
[419777520,1775374256463,-150.0,0.00015212,2]
[419777521,1775374256471,-150.0,0.00015213,2]
[419777522,1775374256481,-150.0,0.00015214,2]
[419777523,1775374256490,-150.0,0.00015214,2]
[419777524,1775374256499,-150.0,0.00015222,2]
[419777525,1775374256508,-150.0,0.00015233,2]
[419777526,1775374256517,-150.0,0.00015234,2]
[419777527,1775374256526,-350.0,0.00015239,2]
[419777528,1775374256535,-150.0,0.00015239,2]
[419777529,1775374256545,-150.0,0.0001524,2]
[419777530,1775374256554,-150.0,0.00015242,2]
[419777531,1775374256563,-38812.82348841,0.00015242,2]
[419777532,1775374256573,-150.0,0.00015243,2]
[419777533,1775374256582,-150.0,0.00015243,2]
[419777534,1775374256592,-150.0,0.00015255,2]
[419777535,1775374256601,-150.0,0.00015258,2]
[419777536,1775374256610,-1048.98200346,0.0001526,2]
[419777537,1775374256619,-150.0,0.00015265,2]
[419777538,1775374256628,-150.0,0.00015269,2]
[419777539,1775374256637,-150.0,0.00015272,2]
[419777540,1775374256647,-150.0,0.00015272,2]
[419777541,1775374256655,-150.0,0.00015272,2]
[419777542,1775374256665,-150.0,0.00015274,2]
[419777543,1775374256674,-150.0,0.00015276,2]
[419777544,1775374256692,-150.0,0.00015276,2]
[419777545,1775374256703,-243.30922088,0.0001528,2]
[419777546,1775374256713,-1000.0,0.00015287,2]
[419777547,1775374256722,-150.0,0.00015288,2]
[419777548,1775374256732,-150.0,0.00015291,2]
[419777549,1775374256741,-150.0,0.00015295,2]
[419777550,1775374256751,-150.0,0.00015297,2]
[419777551,1775374256760,-1517.64,0.000153,2]
[419777552,1775374256770,-666.62460364,0.000153,2]
[419777553,1775374256780,-150.0,0.00015302,2]
[419777554,1775374256790,-150.0,0.00015302,2]
[419777555,1775374256799,-150.0,0.00015307,2]
[419777556,1775374256809,-500.0,0.00015309,2]
[419777557,1775374256818,-500.0,0.00015309,2]
[419777558,1775374256828,-500.0,0.00015309,2]
[419777559,1775374256837,-500.0,0.00015309,2]
[419777560,1775374256847,-500.0,0.00015309,2]
[419777561,1775374256857,-500.0,0.00015309,2]
[419777562,1775374256866,-500.0,0.00015309,2]
[419777563,1775374256876,-500.0,0.00015309,2]
[419777564,1775374256886,-500.0,0.00015309,2]
[419777565,1775374256895,-500.0,0.00015309,2]
[419777566,1775374256905,-500.0,0.00015309,2]
[419777567,1775374256915,-500.0,0.00015309,2]
[419777568,1775374256925,-500.0,0.00015309,2]
[419777569,1775374256935,-999.99,0.0001531,2]
[419777570,1775374256944,-4999.99,0.0001531,2]
[419777571,1775374256954,-9999.99,0.0001531,2]
[419777572,1775374256963,-23359.22,0.0001531,2]
[419777573,1775374256973,-150.99,0.0001531,2]
[419777574,1775374256982,-9999.99,0.0001531,2]
[419777575,1775374256991,-3292.32,0.0001531,2]
[419777576,1775374257001,-1549.98,0.0001531,2]
[419777577,1775374257011,-299.99,0.0001531,2]
[419777578,1775374257020,-351.47,0.0001531,2]
[419777579,1775374257029,-14111.56,0.0001531,2]
[419777580,1775374257039,-5085.88,0.0001531,2]
[419777581,1775374257048,-8186.34,0.0001531,2]
[419777582,1775374257058,-150.99,0.0001531,2]
[419777583,1775374257068,-9999.99,0.0001531,2]
[419777584,1775374257077,-2175.77,0.0001531,2]
[419777585,1775374257086,-1557.38,0.0001531,2]
[419777586,1775374257096,-150.0,0.00015313,2]
[419777587,1775374257106,-5888.0,0.00015314,2]
[419777588,1775374257115,-1048.98200346,0.00015315,2]
[419777589,1775374257124,-150.0,0.00015317,2]
[419777590,1775374257134,-150.0,0.00015318,2]
[419777591,1775374257143,-150.0,0.00015331,2]
[419777592,1775374257153,-150.0,0.00015331,2]
[419777593,1775374257162,-150.0,0.00015331,2]
[419777594,1775374257172,-2458.46285127,0.00015335,2]
[419777595,1775374257182,-150.0,0.00015338,2]
[419777596,1775374257191,-150.0,0.00015339,2]
[419777597,1775374257200,-150.0,0.0001534,2]
[419777598,1775374257209,-150.0,0.00015342,2]
[419777599,1775374257218,-500.0,0.00015342,2]
[419777600,1775374257228,-2000.0,0.00015342,2]
[419777601,1775374257237,-1000.0,0.00015342,2]
[419777602,1775374257246,-502.36401508,0.00015342,2]
[419777603,1775374257255,-693.24301277,0.00015342,2]
[419777604,1775374257264,-500.0,0.00015342,2]
[419777605,1775374257273,-1189.37318328,0.00015342,2]
[419777606,1775374257282,-2000.0,0.00015342,2]
[419777607,1775374257292,-2000.0,0.00015342,2]
[419777608,1775374257301,-500.0,0.00015342,2]
[419777609,1775374257310,-506.60866792,0.00015342,2]
[419777610,1775374257320,-2000.0,0.00015342,2]
[419777611,1775374257329,-2000.0,0.00015342,2]
[419777612,1775374257338,-415.42400348,0.00015342,2]
[419777613,1775374257347,-1500.0,0.00015342,2]
[419777614,1775374257356,-2000.0,0.00015342,2]
[419777615,1775374257365,-932.23819105,0.00015342,2]
[419777616,1775374257375,-1500.0,0.00015342,2]
[419777617,1775374257383,-1143.48326881,0.00015342,2]
[419777618,1775374257394,-2000.0,0.00015342,2]
[419777619,1775374257403,-2000.0,0.00015342,2]
[419777620,1775374257412,-500.0,0.00015342,2]
[419777621,1775374257421,-762.51968471,0.00015342,2]
[419777622,1775374257431,-2000.0,0.00015342,2]
[419777623,1775374257440,-1253.85680119,0.00015342,2]
[419777624,1775374257450,-347.07116371,0.00015342,2]
[419777625,1775374257460,-2000.0,0.00015342,2]
[419777626,1775374257470,-2000.0,0.00015342,2]
[419777627,1775374257479,-2000.0,0.00015342,2]
[419777628,1775374257488,-1000.0,0.00015342,2]
[419777629,1775374257498,-150.0,0.00015343,2]
[419777630,1775374257507,-1494.0,0.00015344,2]
[419777631,1775374257516,-613.4741115,0.00015347,2]
[419777632,1775374257530,-5888.0,0.00015348,2]
[419777633,1775374257540,-150.0,0.00015349,2]
[419777634,1775374257549,-347.56,0.00015352,2]
[419777635,1775374257559,-150.0,0.00015361,2]
[419777636,1775374257569,-150.0,0.00015361,2]
[419777637,1775374257578,-150.0,0.00015361,2]
[419777638,1775374257588,-150.0,0.00015361,2]
[419777639,1775374257623,-150.0,0.00015361,2]
[419777640,1775374257645,-150.0,0.00015361,2]
[419777641,1775374257664,-150.0,0.00015367,2]
[419777642,1775374257685,-150.0,0.00015369,2]
[419777643,1775374257708,-1048.98200346,0.0001537,2]
[419777644,1775374257728,-150.0,0.00015372,2]
[419777645,1775374257745,-150.0,0.00015379,2]
[419777646,1775374257760,-150.0,0.00015382,2]
[419777647,1775374257779,-839.79946318,0.00015382,2]
[419777648,1775374257799,-297.3644976,0.00015382,2]
[419777649,1775374257820,-150.0,0.00015385,2]
[419777650,1775374257833,-150.0,0.0001539,2]
[419777651,1775374257851,-150.0,0.0001539,2]
[419777652,1775374257870,-150.0,0.00015395,2]
[419777653,1775374257891,-150.0,0.00015396,2]
[419777654,1775374257906,-150.0,0.00015397,2]
[419777655,1775374257924,-512.60947705,0.000154,2]
[419777656,1775374257944,-150.0,0.00015403,2]
[419777657,1775374257968,-150.0,0.00015403,2]
[419777658,1775374257993,-150.0,0.00015404,2]
[419777659,1775374258015,-713.36627973,0.00015406,2]
[419777660,1775374258033,-150.0,0.00015407,2]
[419777661,1775374258053,-1000.0,0.00015412,2]
[419777662,1775374258071,-150.0,0.0001542,2]
[419777663,1775374258093,-150.0,0.0001542,2]
[419777664,1775374258112,-226.16149437,0.00015421,2]
[419777665,1775374258129,-150.0,0.00015421,2]
[419777666,1775374258145,-150.0,0.00015422,2]
[419777667,1775374258163,-150.0,0.00015424,2]
[419777668,1775374258182,-150.0,0.00015436,2]
[419777669,1775374258199,-150.0,0.00015439,2]
[419777670,1775374258214,-150.0,0.00015445,2]
[419777671,1775374258231,-150.0,0.00015448,2]
[419777672,1775374258247,-150.0,0.00015449,2]
[419777673,1775374258292,-150.0,0.00015449,2]
[419777674,1775374258313,-150.0,0.00015449,2]
[419777675,1775374258333,-150.0,0.00015452,2]
[419777676,1775374258355,-1048.98200346,0.00015452,2]
[419777677,1775374258375,-290.55599893,0.00015457,2]
[419777678,1775374258394,-150.0,0.00015457,2]
[419777679,1775374258414,-350.0,0.00015459,2]
[419777680,1775374258432,-350.0,0.00015461,2]
[419777681,1775374258450,-150.0,0.00015467,2]
[419777682,1775374258468,-151.0,0.00015469,2]
[419777683,1775374258486,-150.0,0.00015469,2]
[419777684,1775374258502,-150.0,0.00015474,2]
[419777685,1775374258519,-150.0,0.00015475,2]
[419777686,1775374258538,-150.0,0.00015476,2]
[419777687,1775374258555,-150.0,0.00015478,2]
[419777688,1775374258573,-150.0,0.00015478,2]
[419777689,1775374258588,-150.0,0.00015488,2]
[419777690,1775374258605,-220.31242664,0.00015492,2]
[419777691,1775374258621,-150.0,0.00015493,2]
[419777692,1775374258637,-150.0,0.00015493,2]
[419777693,1775374258654,-900.0,0.00015499,2]
[419777694,1775374258670,-150.0,0.000155,2]
[419777695,1775374258686,-1661.34286454,0.000155,3]
[419777696,1775374258703,-5643.7200837,0.000155,3]
[419777697,1775374258719,-1231.52674065,0.000155,2]
[419777698,1775374258735,-800.0,0.000155,5]
[419777699,1775374258752,-150.0,0.00015501,2]
[419777700,1775374258769,-350.0,0.00015506,2]
[419777701,1775374258786,-150.0,0.00015507,2]
[419777702,1775374258801,-4000.0,0.00015507,2]
[419777703,1775374258817,-1048.98200346,0.00015507,2]
[419777704,1775374258834,-150.0,0.00015508,2]
[419777705,1775374258850,-150.0,0.00015508,2]
[419777706,1775374258865,-150.0,0.00015509,2]
[419777707,1775374258881,-150.0,0.00015511,2]
[419777708,1775374258896,-150.0,0.00015526,2]
[419777709,1775374258911,-350.0,0.00015529,2]
[419777710,1775374258926,-150.0,0.00015529,2]
[419777711,1775374258943,-150.0,0.0001553,2]
[419777712,1775374258958,-150.0,0.00015532,2]
[419777713,1775374258974,-150.0,0.00015534,2]
[419777714,1775374258989,-150.0,0.00015537,2]
[419777715,1775374259004,-150.0,0.00015537,2]
[419777716,1775374259019,-150.0,0.00015537,2]
[419777717,1775374259035,-150.0,0.00015545,2]
[419777718,1775374259051,-150.0,0.00015547,2]
[419777719,1775374259066,-150.0,0.00015551,2]
[419777720,1775374259082,-150.0,0.00015552,2]
[419777721,1775374259097,-1048.98200346,0.00015562,2]
[419777722,1775374259112,-150.0,0.00015562,2]
[419777723,1775374259128,-150.0,0.00015565,2]
[419777724,1775374259143,-150.0,0.00015566,2]
[419777725,1775374259158,-150.0,0.00015567,2]
[419777726,1775374259174,-150.0,0.00015567,2]
[419777727,1775374259195,-150.0,0.00015573,2]
[419777728,1775374259210,-217.0,0.00015573,2]
[419777729,1775374259227,-273.0,0.00015573,2]
[419777730,1775374259242,-200.0,0.00015573,2]
[419777731,1775374259258,-250.0,0.00015573,2]
[419777732,1775374259272,-224.902,0.00015573,2]
[419777733,1775374259286,-250.0,0.00015573,2]
[419777734,1775374259301,-238.347,0.00015573,2]
[419777735,1775374259316,-162.919,0.00015573,2]
[419777736,1775374259332,-250.0,0.00015573,2]
[419777737,1775374259348,-150.0,0.00015578,2]
[419777738,1775374259363,-1534.70941583,0.00015581,2]
[419777739,1775374259380,-150.0,0.00015583,2]
[419777740,1775374259395,-150.0,0.00015594,2]
[419777741,1775374259408,-150.0,0.00015596,2]
[419777742,1775374259423,-150.0,0.00015596,2]
[419777743,1775374259438,-150.0,0.00015599,2]
[419777744,1775374259452,-500.0,0.00015599,2]
[419777745,1775374259466,-536.08,0.00015599,2]
[419777746,1775374259481,-698.2,0.00015599,2]
[419777747,1775374259495,-500.0,0.00015599,2]
[419777748,1775374259510,-500.0,0.00015599,2]
[419777749,1775374259524,-500.0,0.00015599,2]
[419777750,1775374259539,-500.0,0.00015599,2]
[419777751,1775374259553,-500.0,0.00015599,2]
[419777752,1775374259567,-500.0,0.00015599,2]
[419777753,1775374259581,-500.0,0.00015599,2]
[419777754,1775374259596,-500.0,0.00015599,2]
[419777755,1775374259610,-500.0,0.00015599,2]
[419777756,1775374259624,-500.0,0.00015599,2]
[419777757,1775374259638,-500.0,0.00015599,2]
[419777758,1775374259652,-500.0,0.00015599,2]
[419777759,1775374259666,-500.0,0.00015599,2]
[419777760,1775374259679,-500.0,0.00015599,2]
[419777761,1775374259693,-157.0,0.000156,3]
[419777762,1775374259707,-157.0,0.000156,3]
[419777763,1775374259720,-800.0,0.000156,5]
[419777764,1775374259734,-150.0,0.00015601,2]
[419777765,1775374259749,-150.0,0.00015604,2]
[419777766,1775374259763,-347.56,0.00015613,2]
[419777767,1775374259777,-155.80569417,0.00015614,2]
[419777768,1775374259791,-150.0,0.00015614,2]
[419777769,1775374259805,-150.0,0.00015615,2]
[419777770,1775374259820,-150.0,0.00015616,2]
[419777771,1775374259835,-1048.98200346,0.00015616,2]
[419777772,1775374259849,-150.0,0.0001562,2]
[419777773,1775374259862,-1494.0,0.00015624,2]
[419777774,1775374259876,-150.0,0.00015626,2]
[419777775,1775374259890,-150.0,0.00015626,2]
[419777776,1775374259905,-150.0,0.00015626,2]
[419777777,1775374259920,-150.0,0.00015626,2]
[419777778,1775374259933,-500.0,0.00015627,2]
[419777779,1775374259947,-150.0,0.0001563,2]
[419777780,1775374259962,-150.0,0.00015631,2]
[419777781,1775374259976,-733.77686062,0.00015634,2]
[419777782,1775374259990,-150.0,0.00015636,2]
[419777783,1775374260006,-150.0,0.00015638,2]
[419777784,1775374260020,-150.0,0.00015655,2]
[419777785,1775374260034,-150.0,0.00015655,2]
[419777786,1775374260050,-150.0,0.00015656,2]
[419777787,1775374260065,-150.0,0.00015656,2]
[419777788,1775374260079,-150.0,0.00015657,2]
[419777789,1775374260093,-9490.98630908,0.00015658,2]
[419777790,1775374260107,-5064.39902358,0.00015658,2]
[419777791,1775374260122,-500.0,0.0001566,2]
[419777792,1775374260137,-534.54,0.0001566,2]
[419777793,1775374260150,-989.7,0.0001566,2]
[419777794,1775374260165,-1289.0,0.0001566,2]
[419777795,1775374260179,-889.96,0.0001566,2]
[419777796,1775374260194,-150.0,0.00015663,2]
[419777797,1775374260210,-150.0,0.00015671,2]
[419777798,1775374260225,-500.0,0.00015672,2]
[419777799,1775374260239,-536.08,0.00015672,2]
[419777800,1775374260254,-698.2,0.00015672,2]